bitfinex/quotes_BTCUSD_20241014
["timestamp","ask_amount","ask_price","bid_price","bid_amount"]
[1728942753650,0.25661595,65893.0,65892.0,0.021825]
[1728942755578,0.04133884,65893.0,65892.0,0.021825]
[1728942760241,0.04133399,65893.0,65892.0,0.021825]
[1728942761283,0.17892467,65893.0,65892.0,0.021825]
[1728942761482,0.19309561,65893.0,65892.0,0.021825]
[1728942762063,0.2384366,65893.0,65892.0,0.021825]
[1728942762300,0.25657618,65893.0,65892.0,0.021825]
[1728942762516,0.21123405,65893.0,65892.0,0.021825]
[1728942762926,0.18174991,65893.0,65892.0,0.021825]
[1728942763135,0.17891612,65893.0,65892.0,0.021825]
[1728942763992,0.17891659,65893.0,65892.0,0.021825]
[1728942765501,0.1930897,65893.0,65892.0,0.021825]
[1728942766969,0.17891659,65893.0,65892.0,0.021825]
[1728942767412,0.19309139,65893.0,65892.0,0.021825]
[1728942767638,0.17891659,65893.0,65892.0,0.021825]
[1728942767845,0.1930914,65893.0,65892.0,0.021825]
[1728942769146,0.21123692,65893.0,65892.0,0.021825]
[1728942769365,0.1930914,65893.0,65892.0,0.021825]
[1728942769577,0.21123688,65893.0,65892.0,0.021825]
[1728942769826,0.1930914,65893.0,65892.0,0.021825]
[1728942775343,0.17891659,65893.0,65892.0,0.021825]
[1728942775560,0.17891781,65893.0,65892.0,0.021825]
[1728942776665,0.19309224,65893.0,65892.0,0.021825]
[1728942778452,0.21123343,65893.0,65892.0,0.021825]
[1728942778664,0.27926057,65893.0,65892.0,0.021825]
[1728942779312,0.19705889,65893.0,65892.0,0.021825]
[1728942779522,0.21123194,65893.0,65892.0,0.021825]
[1728942779961,0.27925908,65893.0,65892.0,0.021825]
[1728942780180,0.27925953,65893.0,65892.0,0.021825]
[1728942781950,0.23560656,65893.0,65892.0,0.021825]
[1728942782177,0.27925502,65893.0,65892.0,0.021825]
[1728942782403,0.27925285,65893.0,65892.0,0.021825]
[1728942782863,0.21122526,65893.0,65892.0,0.021825]
[1728942783755,0.27925285,65893.0,65892.0,0.021825]
[1728942784634,0.27924781,65893.0,65892.0,0.021825]
[1728942788439,0.27924781,65893.0,65892.0,0.016825]
[1728942788665,0.21122526,65893.0,65892.0,0.016825]
[1728942789564,0.25657197,65893.0,65892.0,0.016825]
[1728942789779,0.21122526,65893.0,65892.0,0.016825]
[1728942793535,0.16757897,65893.0,65892.0,0.016825]
[1728942793773,0.19704613,65893.0,65892.0,0.016825]
[1728942794013,0.19704626,65893.0,65892.0,0.016825]
[1728942794233,0.21121323,65893.0,65892.0,0.016825]
[1728942794482,0.27923578,65893.0,65892.0,0.016825]
[1728942794676,0.21121323,65893.0,65892.0,0.016825]
[1728942794924,0.27923578,65893.0,65892.0,0.016825]
[1728942795356,0.27922213,65893.0,65892.0,0.016825]
[1728942797392,0.27921724,65893.0,65892.0,0.016825]
[1728942798040,0.21120834,65893.0,65892.0,0.016825]
[1728942798278,0.27921724,65893.0,65892.0,0.016825]
[1728942798489,0.27920905,65893.0,65892.0,0.016825]
[1728942801034,0.26504208,65893.0,65892.0,0.016825]
[1728942801262,0.27920792,65893.0,65892.0,0.016825]
[1728942802797,0.27920488,65893.0,65892.0,0.016825]
[1728942803475,0.37853706,65893.0,65892.0,0.016825]
[1728942803906,0.46919338,65893.0,65892.0,0.016825]
[1728942804386,0.63719338,65893.0,65892.0,0.016825]
[1728942804601,0.63717873,65893.0,65892.0,0.016825]
[1728942804811,0.54653747,65893.0,65892.0,0.016825]
[1728942805029,0.70889969,65893.0,65892.0,0.016825]
[1728942805269,0.93639179,65893.0,65892.0,0.016825]
[1728942805493,0.93439285,65893.0,65892.0,0.000825]
[1728942805703,0.93539285,65893.0,65892.0,0.006825]
[1728942805920,0.93539285,65893.0,65892.0,0.009825]
[1728942806132,0.93539285,65893.0,65892.0,0.006825]
[1728942806363,0.93939285,65893.0,65892.0,0.006825]
[1728942806802,0.93939285,65893.0,65892.0,0.000825]
[1728942807041,0.92422773,65893.0,65892.0,0.000825]
[1728942807263,0.93939294,65893.0,65892.0,0.000825]
[1728942807712,0.93428241,65893.0,65892.0,0.000825]
[1728942807928,0.83100189,65893.0,65892.0,0.001825]
[1728942808208,0.82800189,65893.0,65892.0,0.001825]
[1728942808419,0.83800189,65893.0,65892.0,0.002825]
[1728942809713,0.85311139,65893.0,65892.0,0.002825]
[1728942809933,0.85811139,65893.0,65892.0,0.002825]
[1728942810351,0.84300189,65893.0,65892.0,0.002825]
[1728942812577,0.8428976,65893.0,65892.0,0.002825]
[1728942813620,0.8580071,65893.0,65892.0,0.002825]
[1728942813874,0.8428976,65893.0,65892.0,0.002825]
[1728942814287,0.85798955,65893.0,65892.0,0.002825]
[1728942814508,0.174777,65886.0,65885.0,0.000825]
[1728942814732,0.79762214,65886.0,65885.0,0.000825]
[1728942814934,0.71932353,65886.0,65885.0,0.000825]
[1728942815568,0.55216204,65886.0,65885.0,0.000825]
[1728942816245,0.55516204,65886.0,65885.0,0.000825]
[1728942816675,0.62304092,65886.0,65885.0,0.000825]
[1728942816882,0.57941225,65886.0,65885.0,0.000825]
[1728942817131,0.62397559,65886.0,65885.0,0.000825]
[1728942817363,0.81366612,65886.0,65885.0,0.000825]
[1728942817568,0.55609663,65886.0,65885.0,0.000825]
[1728942817780,0.62396918,65886.0,65885.0,0.000825]
[1728942818012,0.72396918,65886.0,65885.0,0.000825]
[1728942818230,0.65609663,65886.0,65885.0,0.000825]
[1728942818700,0.72396173,65886.0,65885.0,0.000825]
[1728942819359,0.65609663,65886.0,65885.0,0.000825]
[1728942819580,0.72895653,65886.0,65885.0,0.000825]
[1728942820020,0.66109663,65886.0,65885.0,0.000825]
[1728942821581,0.72894599,65886.0,65885.0,0.000825]
[1728942822235,0.72894728,65886.0,65885.0,0.000825]
[1728942822675,0.72894497,65886.0,65885.0,0.000825]
[1728942824535,0.82806245,65886.0,65885.0,0.000825]
[1728942825446,0.83576185,65886.0,65885.0,0.000825]
[1728942826582,0.66879603,65886.0,65885.0,0.000825]
[1728942827442,0.83574286,65886.0,65885.0,0.000825]
[1728942827668,0.66879603,65886.0,65885.0,0.000825]
[1728942827885,0.94881987,65886.0,65885.0,0.000825]
[1728942828112,0.83573545,65886.0,65885.0,0.000825]
[1728942828331,0.8357307,65886.0,65885.0,0.000825]
[1728942828764,0.94881512,65886.0,65885.0,0.000825]
[1728942829007,0.8357307,65886.0,65885.0,0.000825]
[1728942832085,0.83570219,65886.0,65885.0,0.000825]
[1728942832341,0.83569812,65886.0,65885.0,0.000825]
[1728942832546,0.96382118,65886.0,65885.0,0.000825]
[1728942832757,0.83569812,65886.0,65885.0,0.000825]
[1728942833458,0.151795,65878.0,65872.0,0.0908]
[1728942833707,0.37188067,65878.0,65872.0,0.0908]
[1728942833919,0.38407398,65878.0,65872.0,0.0908]
[1728942835267,0.38407398,65878.0,65877.0,0.006825]
[1728942835856,0.38407398,65878.0,65877.0,0.000825]
[1728942836074,0.37194183,65878.0,65877.0,0.000825]
[1728942836329,0.39108825,65878.0,65877.0,0.001825]
[1728942838744,0.38608825,65878.0,65877.0,0.000825]
[1728942839615,0.39108825,65878.0,65877.0,0.000825]
[1728942842604,0.37695628,65878.0,65877.0,0.000825]
[1728942842783,0.39110989,65878.0,65877.0,0.000825]
[1728942844543,0.43635433,65878.0,65877.0,0.000825]
[1728942846489,0.43636446,65878.0,65877.0,0.000825]
[1728942847568,0.39112002,65878.0,65877.0,0.000825]
[1728942847985,0.39112002,65878.0,65877.0,0.178925]
[1728942848194,0.39112002,65878.0,65877.0,0.096725]
[1728942848646,0.28249558,65878.0,65877.0,0.29242663]
[1728942848856,0.07288895,65878.0,65877.0,0.29242663]
[1728942849131,0.07288895,65878.0,65877.0,0.44422463]
[1728942849347,0.07288895,65878.0,65877.0,0.29242663]
[1728942849544,0.07288895,65878.0,65877.0,0.44422463]
[1728942849750,0.07288895,65878.0,65877.0,0.29242663]
[1728942850115,0.07088895,65878.0,65877.0,0.29242663]
[1728942850531,0.05172521,65878.0,65877.0,0.29442663]
[1728942850725,0.06591575,65878.0,65877.0,0.29442663]
[1728942850932,0.04778379,65878.0,65877.0,0.29442663]
[1728942852677,0.03666169,65878.0,65877.0,0.29442663]
[1728942854378,0.03665587,65878.0,65877.0,0.29442663]
[1728942854541,0.03665121,65878.0,65877.0,0.29442663]
[1728942855753,0.02249143,65878.0,65877.0,0.29442663]
[1728942855954,0.03665007,65878.0,65877.0,0.29442663]
[1728942856324,0.02249143,65878.0,65877.0,0.29442663]
[1728942856755,0.17428643,65878.0,65877.0,0.29442663]
[1728942860930,0.17982285,65878.0,65877.0,0.29442663]
[1728942862276,0.17982285,65878.0,65877.0,0.180925]
[1728942862505,0.17982285,65878.0,65877.0,0.002825]
[1728942862718,0.16849503,65878.0,65877.0,0.002825]
[1728942862930,0.19397082,65878.0,65877.0,0.002825]
[1728942863139,0.19397075,65878.0,65877.0,0.002825]
[1728942866910,0.17981732,65878.0,65877.0,0.002825]
[1728942867340,0.19396865,65878.0,65877.0,0.002825]
[1728942868945,0.19396757,65878.0,65877.0,0.002825]
[1728942870940,0.16849503,65878.0,65877.0,0.002825]
[1728942871149,0.19396966,65878.0,65877.0,0.002825]
[1728942871361,0.21208432,65878.0,65877.0,0.002825]
[1728942872893,0.21208432,65878.0,65877.0,0.000825]
[1728942872894,0.23473126,65878.0,65877.0,0.000825]
[1728942873317,0.23573126,65878.0,65877.0,0.000825]
[1728942873526,0.28401882,65878.0,65877.0,0.000825]
[1728942873760,0.28001882,65878.0,65877.0,0.000825]
[1728942873977,0.28301882,65878.0,65877.0,0.000825]
[1728942874184,0.28901882,65878.0,65877.0,0.000825]
[1728942874410,0.28301882,65878.0,65877.0,0.000825]
[1728942874922,0.42874778,65878.0,65877.0,0.000825]
[1728942875137,0.42027516,65878.0,65877.0,0.000825]
[1728942875361,0.40216001,65878.0,65877.0,0.000825]
[1728942875579,0.48521526,65878.0,65877.0,0.000825]
[1728942875788,0.48821526,65878.0,65877.0,0.000825]
[1728942876027,0.67801997,65878.0,65877.0,0.000825]
[1728942876258,0.58744399,65878.0,65877.0,0.000825]
[1728942876487,0.42028207,65878.0,65877.0,0.000825]
[1728942881038,0.58743637,65878.0,65877.0,0.000825]
[1728942882111,0.4109079,65878.0,65877.0,0.000825]
[1728942882324,0.50152241,65878.0,65877.0,0.000825]
[1728942882741,0.4109079,65878.0,65877.0,0.000825]
[1728942884051,0.31172018,65878.0,65877.0,0.000825]
[1728942884491,0.31172053,65878.0,65877.0,0.000825]
[1728942886413,0.31173057,65878.0,65877.0,0.000825]
[1728942886780,0.50163761,65878.0,65877.0,0.000825]
[1728942886978,0.4110231,65878.0,65877.0,0.000825]
[1728942887197,0.31173171,65878.0,65877.0,0.000825]
[1728942887402,0.31173124,65878.0,65877.0,0.000825]
[1728942888447,0.24376364,65878.0,65877.0,0.000825]
[1728942888887,0.31173373,65878.0,65877.0,0.000825]
[1728942889091,0.24376364,65878.0,65877.0,0.000825]
[1728942889261,0.501657,65878.0,65877.0,0.000825]
[1728942889465,0.50166418,65878.0,65877.0,0.000825]
[1728942889668,0.4110355,65878.0,65877.0,0.000825]
[1728942890202,0.34476689,65878.0,65877.0,0.000825]
[1728942890430,0.39688693,65878.0,65877.0,0.000825]
[1728942890624,0.41104998,65878.0,65877.0,0.000825]
[1728942892381,0.41106302,65878.0,65877.0,0.000825]
[1728942892842,0.41106673,65878.0,65877.0,0.000825]
[1728942893482,0.50170352,65878.0,65877.0,0.000825]
[1728942895430,0.41107456,65878.0,65877.0,0.000825]
[1728942895640,0.31175945,65878.0,65877.0,0.000825]
[1728942895851,0.24377812,65878.0,65877.0,0.000825]
[1728942896275,0.31175945,65878.0,65877.0,0.000825]
[1728942896682,0.28910108,65878.0,65877.0,0.000825]
[1728942897240,0.28373531,65878.0,65877.0,0.000825]
[1728942897444,0.40570776,65878.0,65877.0,0.000825]
[1728942897651,0.30639438,65878.0,65877.0,0.000825]
[1728942897858,0.30638807,65878.0,65877.0,0.000825]
[1728942898081,0.27693498,65878.0,65877.0,0.000825]
[1728942898274,0.30640021,65878.0,65877.0,0.000825]
[1728942898496,0.26277166,65878.0,65877.0,0.000825]
[1728942898700,0.30640505,65878.0,65877.0,0.000825]
[1728942899631,0.40571235,65878.0,65877.0,0.000825]
[1728942899836,0.49634783,65878.0,65877.0,0.000825]
[1728942900495,0.23842933,65878.0,65877.0,0.000825]
[1728942905036,0.2384429,65878.0,65877.0,0.000825]
[1728942905432,0.40574955,65878.0,65877.0,0.000825]
[1728942906751,0.25395455,65878.0,65877.0,0.000825]
[1728942906956,0.25395455,65878.0,65877.0,0.176725]
[1728942907081,0.0866479,65878.0,65877.0,0.176725]
[1728942907287,0.2384429,65878.0,65877.0,0.176725]
[1728942907695,0.28377164,65878.0,65877.0,0.176725]
[1728942908321,0.2893746,65878.0,65877.0,0.176725]
[1728942909244,0.28938385,65878.0,65877.0,0.176725]
[1728942910375,0.28938334,65878.0,65877.0,0.176725]
[1728942912736,0.27520695,65878.0,65877.0,0.176725]
[1728942912982,0.32621136,65878.0,65877.0,0.176725]
[1728942913639,0.44816965,65878.0,65877.0,0.176725]
[1728942913845,0.34886131,65878.0,65877.0,0.176725]
[1728942915269,0.34886801,65878.0,65877.0,0.176725]
[1728942916652,0.28255671,65878.0,65877.0,0.176725]
[1728942916884,0.3488468,65878.0,65877.0,0.176725]
[1728942917549,0.28086192,65878.0,65877.0,0.176725]
[1728942918390,0.24402231,65878.0,65877.0,0.176725]
[1728942918816,0.22589169,65878.0,65877.0,0.176725]
[1728942919051,0.24402188,65878.0,65877.0,0.176725]
[1728942920041,0.28934515,65878.0,65877.0,0.176725]
[1728942920850,0.28933948,65878.0,65877.0,0.176725]
[1728942921672,0.28933948,65878.0,65877.0,0.000825]
[1728942924276,0.25251165,65878.0,65877.0,0.000825]
[1728942924494,0.28933226,65878.0,65877.0,0.000825]
[1728942927363,0.22305549,65878.0,65877.0,0.000825]
[1728942927600,0.28933639,65878.0,65877.0,0.000825]
[1728942928256,0.28933654,65878.0,65877.0,0.000825]
[1728942930015,0.28932625,65878.0,65877.0,0.000825]
[1728942932181,0.28932994,65878.0,65877.0,0.000825]
[1728942935013,0.28932667,65878.0,65877.0,0.000825]
[1728942940051,0.24401696,65878.0,65877.0,0.000825]
[1728942940197,0.50183315,65878.0,65877.0,0.000825]
[1728942942507,0.58401372,65878.0,65877.0,0.000825]
[1728942943593,0.56983513,65878.0,65877.0,0.000825]
[1728942943829,0.58398905,65878.0,65877.0,0.000825]
[1728942944685,0.5839613,65878.0,65877.0,0.000825]
[1728942947572,0.5613114,65878.0,65877.0,0.000825]
[1728942947781,0.58392459,65878.0,65877.0,0.000825]
[1728942949718,0.58391217,65878.0,65877.0,0.000825]
[1728942950163,0.41675558,65878.0,65877.0,0.000825]
[1728942950380,0.58391126,65878.0,65877.0,0.000825]
[1728942951466,0.58390882,65878.0,65877.0,0.000825]
[1728942954504,0.58395876,65878.0,65877.0,0.000825]
[1728942955358,0.58396808,65878.0,65877.0,0.000825]
[1728942958055,0.69720787,65878.0,65877.0,0.000825]
[1728942958485,0.58396808,65878.0,65877.0,0.000825]
[1728942959324,0.69718111,65878.0,65877.0,0.000825]
[1728942959545,0.58395278,65878.0,65877.0,0.000825]
[1728942959982,0.69717566,65878.0,65877.0,0.000825]
[1728942962086,0.6971827,65878.0,65877.0,0.000825]
[1728942962823,0.69716481,65878.0,65877.0,0.000825]
[1728942964502,0.69716637,65878.0,65877.0,0.000825]
[1728942964914,0.69179391,65878.0,65877.0,0.000825]
[1728942965557,0.70335241,65878.0,65877.0,0.000825]
[1728942966186,0.66655405,65878.0,65877.0,0.000825]
[1728942966464,0.68920181,65878.0,65877.0,0.000825]
[1728942966669,0.71468543,65878.0,65877.0,0.000825]
[1728942966874,0.70336155,65878.0,65877.0,0.000825]
[1728942967740,0.70335748,65878.0,65877.0,0.000825]
[1728942970130,0.66655222,65878.0,65877.0,0.000825]
[1728942970382,0.70338016,65878.0,65877.0,0.000825]
[1728942972099,0.53058016,65878.0,65877.0,0.000825]
[1728942972314,0.5079421,65878.0,65877.0,0.000825]
[1728942973479,0.53058016,65878.0,65877.0,0.000825]
[1728942974105,0.53058232,65878.0,65877.0,0.000825]
[1728942975542,0.41736506,65878.0,65877.0,0.000825]
[1728942975744,0.53059055,65878.0,65877.0,0.000825]
[1728942976261,0.41736506,65878.0,65877.0,0.000825]
[1728942976991,0.31813203,65878.0,65877.0,0.000825]
[1728942977756,0.2518576,65878.0,65877.0,0.000825]
[1728942977974,0.31812947,65878.0,65877.0,0.000825]
[1728942980148,0.50798349,65878.0,65877.0,0.000825]
[1728942980382,0.53063108,65878.0,65877.0,0.000825]
[1728942981010,0.41739312,65878.0,65877.0,0.000825]
[1728942981429,0.5306372,65878.0,65877.0,0.000825]
[1728942981644,0.5306312,65878.0,65877.0,0.000825]
[1728942981862,0.41738712,65878.0,65877.0,0.000825]
[1728942982074,0.41744145,65878.0,65877.0,0.000825]
[1728942984802,0.53074101,65878.0,65877.0,0.000825]
[1728942985010,0.53074205,65878.0,65877.0,0.000825]
[1728942985464,0.51263017,65878.0,65877.0,0.000825]
[1728942985673,0.53075873,65878.0,65877.0,0.000825]
[1728942985891,0.41745813,65878.0,65877.0,0.000825]
[1728942987031,0.41750435,65878.0,65877.0,0.000825]
[1728942987693,0.41750216,65878.0,65877.0,0.000825]
[1728942988759,0.53080815,65878.0,65877.0,0.000825]
[1728942989191,0.49398573,65878.0,65877.0,0.000825]
[1728942989420,0.53080835,65878.0,65877.0,0.000825]
[1728942993123,0.49398582,65878.0,65877.0,0.000825]
[1728942993339,0.53080798,65878.0,65877.0,0.000825]
[1728942996903,0.49398582,65878.0,65877.0,0.000825]
[1728942997120,0.53080878,65878.0,65877.0,0.000825]
[1728943001134,0.53081014,65878.0,65877.0,0.000825]
[1728943001721,0.50815319,65878.0,65877.0,0.000825]
[1728943002212,0.31818682,65878.0,65877.0,0.000825]
[1728943002403,0.50815224,65878.0,65877.0,0.000825]
[1728943002603,0.4175032,65878.0,65877.0,0.000825]
[1728943003032,0.25020061,65878.0,65877.0,0.000825]
[1728943003439,0.50814351,65878.0,65877.0,0.000825]
[1728943004480,0.28136831,65878.0,65877.0,0.000825]
[1728943004697,0.31819204,65878.0,65877.0,0.000825]
[1728943005128,0.50818092,65878.0,65877.0,0.000825]
[1728943005535,0.25020021,65878.0,65877.0,0.000825]
[1728943005804,0.31819211,65878.0,65877.0,0.000825]
[1728943006023,0.25020021,65878.0,65877.0,0.000825]
[1728943006463,0.41751637,65878.0,65877.0,0.000825]
[1728943006672,0.25020021,65878.0,65877.0,0.000825]
[1728943006883,0.31818972,65878.0,65877.0,0.000825]
[1728943007390,0.25020021,65878.0,65877.0,0.000825]
[1728943007603,0.50815953,65878.0,65877.0,0.000825]
[1728943007807,0.41751049,65878.0,65877.0,0.000825]
[1728943008012,0.25020021,65878.0,65877.0,0.000825]
[1728943008216,0.22074199,65878.0,65877.0,0.000825]
[1728943008420,0.4175158,65878.0,65877.0,0.000825]
[1728943008855,0.50815901,65878.0,65877.0,0.000825]
[1728943009269,0.41750997,65878.0,65877.0,0.000825]
[1728943010134,0.53081596,65878.0,65877.0,0.000825]
[1728943010545,0.41750997,65878.0,65877.0,0.000825]
[1728943012053,0.41751595,65878.0,65877.0,0.000825]
[1728943012282,0.41751756,65878.0,65877.0,0.000825]
[1728943012485,0.41751819,65878.0,65877.0,0.000825]
[1728943013967,0.53082418,65878.0,65877.0,0.000825]
[1728943014585,0.41751819,65878.0,65877.0,0.000825]
[1728943015483,0.53082418,65878.0,65877.0,0.000825]
[1728943015894,0.53086412,65878.0,65877.0,0.000825]
[1728943019689,0.53087369,65878.0,65877.0,0.000825]
[1728943019904,0.53087745,65878.0,65877.0,0.000825]
[1728943020587,0.53087322,65878.0,65877.0,0.000825]
[1728943023017,0.41754796,65878.0,65877.0,0.000825]
[1728943023680,0.53088001,65878.0,65877.0,0.000825]
[1728943024330,0.53089242,65878.0,65877.0,0.000825]
[1728943024553,0.41755941,65878.0,65877.0,0.000825]
[1728943026474,0.41755733,65878.0,65877.0,0.000825]
[1728943027805,0.53089433,65878.0,65877.0,0.000825]
[1728943028024,0.35643352,65878.0,65877.0,0.000825]
[1728943028255,0.50822852,65878.0,65877.0,0.000825]
[1728943029367,0.41755733,65878.0,65877.0,0.000825]
[1728943029595,0.53089614,65878.0,65877.0,0.000825]
[1728943029779,0.41755733,65878.0,65877.0,0.000825]
[1728943030012,0.50822896,65878.0,65877.0,0.000825]
[1728943030459,0.60343653,65878.0,65877.0,0.000825]
[1728943030666,0.41755615,65878.0,65877.0,0.000825]
[1728943031091,0.50822845,65878.0,65877.0,0.000825]
[1728943031511,0.41755615,65878.0,65877.0,0.000825]
[1728943031717,0.50822732,65878.0,65877.0,0.000825]
[1728943032713,0.40639254,65878.0,65877.0,0.000825]
[1728943032947,0.50766371,65878.0,65877.0,0.000825]
[1728943033362,0.41699254,65878.0,65877.0,0.000825]
[1728943033755,0.53033135,65878.0,65877.0,0.000825]
[1728943034195,0.46403674,65878.0,65877.0,0.000825]
[1728943034413,0.53033698,65878.0,65877.0,0.000825]
[1728943034636,0.53033697,65878.0,65877.0,0.000825]
[1728943034853,0.41699816,65878.0,65877.0,0.000825]
[1728943035086,0.53033583,65878.0,65877.0,0.000825]
[1728943035310,0.78672663,65878.0,65877.0,0.000825]
[1728943035529,0.89132898,65878.0,65877.0,0.000825]
[1728943035733,1.02732859,65878.0,65877.0,0.000825]
[1728943035957,1.01221743,65878.0,65877.0,0.000825]
[1728943036433,1.02132478,65878.0,65877.0,0.000825]
[1728943036652,1.03232478,65878.0,65877.0,0.000825]
[1728943037089,1.02932478,65878.0,65877.0,0.001825]
[1728943037304,0.90232517,65878.0,65877.0,0.001825]
[1728943037529,0.88732517,65878.0,65877.0,0.000825]
[1728943037804,0.89432517,65878.0,65877.0,0.001825]
[1728943038029,0.90429943,65878.0,65877.0,0.001825]
[1728943038263,0.89729943,65878.0,65877.0,0.000825]
[1728943038501,1.04129904,65878.0,65877.0,0.001825]
[1728943038878,1.02619336,65878.0,65877.0,0.001825]
[1728943039137,1.01619336,65878.0,65877.0,0.001825]
[1728943039254,0.89119375,65878.0,65877.0,0.001825]
[1728943039456,0.906296,65878.0,65877.0,0.001825]
[1728943040175,0.89119375,65878.0,65877.0,0.001825]
[1728943040378,0.90629405,65878.0,65877.0,0.001825]
[1728943040618,1.02719336,65878.0,65877.0,0.001825]
[1728943041035,0.151814,65870.0,65869.0,0.000825]
[1728943041187,0.49854846,65870.0,65869.0,0.000825]
[1728943041634,0.49853263,65870.0,65869.0,0.000825]
[1728943042454,0.50153263,65870.0,65869.0,0.000825]
[1728943042659,0.41092456,65870.0,65869.0,0.000825]
[1728943043493,0.50149885,65870.0,65869.0,0.000825]
[1728943044231,0.50549885,65870.0,65869.0,0.000825]
[1728943044747,0.50149885,65870.0,65869.0,0.000825]
[1728943045425,0.41092456,65870.0,65869.0,0.000825]
[1728943045644,0.41087219,65870.0,65869.0,0.000825]
[1728943045860,0.40787219,65870.0,65869.0,0.000825]
[1728943046071,0.41987219,65870.0,65869.0,0.000825]
[1728943046292,0.40605738,65870.0,65869.0,0.000825]
[1728943046508,0.39905738,65870.0,65869.0,0.000825]
[1728943046674,0.40705738,65870.0,65869.0,0.000825]
[1728943048475,0.47495704,65870.0,65869.0,0.000825]
[1728943049443,0.40874908,65870.0,65869.0,0.000825]
[1728943049616,0.47494212,65870.0,65869.0,0.000825]
[1728943053260,0.43816678,65870.0,65869.0,0.000825]
[1728943053467,0.4749389,65870.0,65869.0,0.000825]
[1728943056931,0.4568357,65870.0,65869.0,0.000825]
[1728943057134,0.47493934,65870.0,65869.0,0.000825]
[1728943057687,0.47492492,65870.0,65869.0,0.000825]
[1728943058249,0.47492492,65870.0,65868.0,0.000825]
[1728943058250,0.151816,65869.0,65868.0,0.00033869]
[1728943058414,0.24050681,65869.0,65868.0,0.00033869]
[1728943059034,0.21787704,65869.0,65868.0,0.00033869]
[1728943059245,0.22187704,65869.0,65868.0,0.00033869]
[1728943060101,0.24451031,65869.0,65868.0,0.00033869]
[1728943060301,0.25051031,65869.0,65868.0,0.00033869]
[1728943060563,0.22787704,65869.0,65868.0,0.00033869]
[1728943060762,0.1984589,65869.0,65868.0,0.00033869]
[1728943060962,0.22788513,65869.0,65868.0,0.00033869]
[1728943061425,0.25052414,65869.0,65868.0,0.00033869]
[1728943061600,0.22788513,65869.0,65868.0,0.00033869]
[1728943061805,0.25052364,65869.0,65868.0,0.00033869]
[1728943064641,0.36727,65869.0,65868.0,0.00033869]
[1728943064850,0.40410445,65869.0,65868.0,0.00033869]
[1728943065721,0.57890445,65869.0,65868.0,0.00033869]
[1728943068597,0.57891903,65869.0,65868.0,0.00033869]
[1728943068813,0.57893733,65869.0,65868.0,0.00033869]
[1728943069432,0.40413733,65869.0,65868.0,0.00033869]
[1728943070502,0.47202094,65869.0,65868.0,0.00033869]
[1728943071122,0.49502094,65869.0,65868.0,0.00033869]
[1728943072264,0.42872738,65869.0,65868.0,0.00033869]
[1728943072469,0.4950154,65869.0,65868.0,0.00033869]
[1728943073945,0.5950154,65869.0,65868.0,0.00033869]
[1728943074146,0.87683713,65869.0,65868.0,0.00033869]
[1728943075396,0.78632565,65869.0,65868.0,0.00033869]
[1728943076056,0.75686583,65869.0,65868.0,0.00033869]
[1728943076234,0.78632838,65869.0,65868.0,0.00033869]
[1728943077270,0.98236773,65869.0,65868.0,0.00033869]
[1728943078104,0.86922838,65869.0,65868.0,0.00033869]
[1728943079019,0.86922838,65869.0,65864.0,0.000825]
[1728943079020,0.56332663,65865.0,65864.0,0.000825]
[1728943079241,1.08606641,65865.0,65864.0,0.000825]
[1728943079459,1.10852285,65865.0,65864.0,0.000825]
[1728943079900,1.10850218,65865.0,65864.0,0.000825]
[1728943080105,1.09718018,65865.0,65864.0,0.000825]
[1728943080307,1.10850218,65865.0,65864.0,0.000825]
[1728943080748,1.11750218,65865.0,65864.0,0.001825]
[1728943080964,1.11754353,65865.0,65864.0,0.001825]
[1728943081430,1.13265797,65865.0,65864.0,0.001825]
[1728943081705,0.99269841,65865.0,65864.0,0.001825]
[1728943082399,1.14365427,65865.0,65864.0,0.001825]
[1728943082638,1.12854454,65865.0,65864.0,0.001825]
[1728943083266,1.00775993,65865.0,65864.0,0.001825]
[1728943083491,1.12854454,65865.0,65864.0,0.001825]
[1728943083758,0.99267601,65865.0,65864.0,0.001825]
[1728943083953,1.00052567,65865.0,65864.0,0.001825]
[1728943084212,1.01560704,65865.0,65864.0,0.001825]
[1728943084858,1.00052567,65865.0,65864.0,0.001825]
[1728943085078,1.1383942,65865.0,65864.0,0.001825]
[1728943085292,1.00242383,65865.0,65864.0,0.001825]
[1728943085737,1.00042383,65865.0,65864.0,0.001825]
[1728943089791,1.02253587,65865.0,65864.0,0.001825]
[1728943090036,1.1360375,65865.0,65864.0,0.001825]
[1728943090249,1.00036735,65865.0,65864.0,0.001825]
[1728943090447,0.96364973,65865.0,65864.0,0.001825]
[1728943090652,1.1359556,65865.0,65864.0,0.001825]
[1728943092765,1.02245397,65865.0,65864.0,0.001825]
[1728943092968,1.02216243,65865.0,65864.0,0.001825]
[1728943093192,1.03216243,65865.0,65864.0,0.001825]
[1728943093782,0.80918648,65865.0,65857.0,0.000825]
[1728943094010,0.37020044,65858.0,65857.0,0.000825]
[1728943094213,0.77890591,65858.0,65857.0,0.000825]
[1728943094874,0.6885021,65858.0,65857.0,0.000825]
[1728943095095,0.81143482,65858.0,65857.0,0.001825]
[1728943095283,0.81543482,65858.0,65857.0,0.001825]
[1728943095662,1.00963645,65858.0,65857.0,0.000825]
[1728943095868,0.89670373,65858.0,65857.0,0.000825]
[1728943096077,0.91376261,65858.0,65857.0,0.000825]
[1728943097076,0.88917421,65858.0,65857.0,0.000825]
[1728943097503,0.88517421,65858.0,65857.0,0.000825]
[1728943097707,0.87105646,65858.0,65857.0,0.000825]
[1728943097908,0.92175145,65858.0,65857.0,0.000825]
[1728943098461,0.93175145,65858.0,65857.0,0.001825]
[1728943098642,1.04462145,65858.0,65857.0,0.001825]
[1728943099066,1.03462145,65858.0,65857.0,0.000825]
[1728943099287,1.04862145,65858.0,65857.0,0.001825]
[1728943099727,1.01203992,65858.0,65857.0,0.000825]
[1728943100156,1.0338458,65858.0,65857.0,0.001825]
[1728943100369,1.05642948,65858.0,65857.0,0.001825]
[1728943100589,1.04242948,65858.0,65857.0,0.001825]
[1728943101457,1.05642425,65858.0,65857.0,0.001825]
[1728943101890,1.03384057,65858.0,65857.0,0.001825]
[1728943102655,0.90591343,65858.0,65857.0,0.001825]
[1728943102871,0.82521343,65858.0,65857.0,0.001825]
[1728943103088,0.7117118,65858.0,65857.0,0.001825]
[1728943103312,0.72677097,65858.0,65857.0,0.001825]